[Event "Czech Open-Rapid 2022"]
[Site "Pardubice"]
[Date "2022.07.20"]
[Round "3.7"]
[White "Gressmann, Moritz"]
[Black "Pulpan, Jakub"]
[Result "0-1"]
[ECO "A46"]
[WhiteElo "2114"]
[BlackElo "2424"]
[Annotator "TA"]
[PlyCount "86"]
[EventDate "2022.07.20"]
[EventType "swiss"]
[EventCountry "CZE"]
[SourceTitle "playchess.com"]
[Source "ChessBase"]
[SourceQuality "1"]
[TimeControl "1200+10"]

{[%evp 14,86,0,0,0,0,22,0,0,0,16,14,84,92,73,85,115,82,98,102,105,71,67,58,116,104,138,141,152,141,124,70,61,13,8,0,0,0,0,0,27,34,27,-32,-32,-32,-32,-32,-32,-35,-40,-36,0,0,0,0,0,0,0,0,0,0,0,0,0,0,0,0,0,0,0,0,0,-29995,-29996]} 1. d4 {[%emt 0:00:01]} Nf6 {[%emt 0:00:04]} 2. Nf3 {[%emt 0:00:01]} d5 {[%emt 0:00:13]} 3. g3 {[%emt 0:00:01]} b5 {[%emt 0:00:40]} 4. a4 {[%emt 0:00:12]} b4 {[%emt 0:00:02]} 5. c4 {[%emt 0:00:11]} bxc3 {[%emt 0:00:37]} 6. Nxc3 {[%emt 0:00:02]} e6 {[%emt 0:00:11]} 7. Bg2 {[%emt 0:00:06]} Be7 {[%emt 0:00:11]} 8. O-O {[%emt 0:00:03]} O-O {[%emt 0:00:02] A46: 1 d4 Nf6 2 Nf3 e6: Torre, London and Colle Systems.} 9. Bf4 {[%emt 0:00:56]} c5 {[%emt 0:00:09]} 10. dxc5 {[%emt 0:00:23]} Bxc5 {[%emt 0:00:04] The position is equal.} 11. Nb5 {[%emt 0:00:35]} Na6 {[%emt 0:02:26] Prevents Nc7.} 12. Rc1 {[%emt 0:01:35]} Bb7 {[%emt 0:01:38] [#]} (12... Qb6 $11 {remains equal.}) 13. Ne5 $1 $16 {[%emt 0:01:47][%cal Bf3e5,Be5d3,Bd3c5][%mdl 32] [#]} Nh5 $146 {[%emt 0:00:45]} ({Predecessor:} 13... Rc8 14. Bg5 Nb4 15. Ng4 Be7 16. Rxc8 Bxc8 17. Bxf6 Bxf6 18. Nxa7 Bd7 19. Nxf6+ Qxf6 {0-1 (78) Badelka,O (2440)-Arabidze,M (2437) Tornelo INT 2020}) 14. Bd2 {[%emt 0:00:51]} Bb6 {[%emt 0:00:27]} 15. b4 {[%emt 0:01:04]} Nc7 {[%emt 0:00:25]} 16. Nxc7 {[%emt 0:00:09]} Bxc7 {[%emt 0:00:01]} 17. Nd3 {[%emt 0:00:08]} Nf6 {[%emt 0:02:33]} 18. Nc5 {[%emt 0:02:15]} Bc8 {[%emt 0:00:06]} ({Black should try} 18... Rb8 $14) 19. Bg5 {[%emt 0:00:59]} a6 {[%emt 0:03:04]} 20. e4 Rb8 {[%emt 0:00:51]} 21. exd5 {[%emt 0:03:04]} exd5 {[%emt 0:00:05]} 22. Bxf6 {[%emt 0:00:14]} ({White should play} 22. Qd2 $16) 22... Qxf6 $14 {[%emt 0:00:01] [#]} 23. Qxd5 {[%emt 0:00:48]} (23. Nxa6 $1 $14 Bxa6 24. b5 Bxb5 25. axb5) 23... Rxb4 $11 {[%emt 0:00:57]} 24. Nd7 {[%emt 0:03:08]} Bxd7 {[%emt 0:00:11]} 25. Qxd7 {[%emt 0:00:01]} Bb6 {[%emt 0:01:48]} 26. Rc6 {[%emt 0:02:00]} Qe5 {[%emt 0:02:35]} 27. Bd5 {[%emt 0:00:40][%cal Od7f7] White threatens Qxf7+! and mate.} g6 {[%emt 0:00:28]} 28. Rc8 {[%emt 0:01:21]} (28. a5 $11 Bd4 29. Rxa6) 28... Rxc8 $15 {[%emt 0:00:41]} 29. Qxc8+ {[%emt 0:00:14]} Kg7 {[%emt 0:00:01]} 30. Qd7 {[%emt 0:00:34]} Qf6 {[%emt 0:00:10]} 31. Kh1 {[%emt 0:00:14]} Rb2 {[%emt 0:02:32]} 32. f4 {[%emt 0:00:06]} Bc5 {[%emt 0:00:52]} 33. Rc1 {[%emt 0:00:17]} Qd4 {[%emt 0:00:31][%cal Od4d2]} 34. Qxf7+ Kh6 {( -> ...Qf2)} 35. g4 {[%emt 0:01:28] Intending g5+ and mate.} Qf2 $40 {[%emt 0:00:27][%csl Gb2][%cal Rf2h2][%mdl 128] White needs to defend precisely.} 36. g5+ {[%emt 0:00:09]} Kh5 {[%emt 0:00:01][%csl Gb2][%cal Rf2h2]} 37. Qxh7+ {[%emt 0:00:07]} Kg4 {[%emt 0:00:00]} 38. Be6+ {[%emt 0:00:29]} Kxf4 {[%emt 0:00:15][%csl Gb2][%cal Rf2g2] The board is on fire.} 39. Qc7+ {[%emt 0:00:07]} Ke4 {[%emt 0:00:19][%cal Rf2f3]} 40. Qc6+ {[%emt 0:00:01]} Kf4 {[%emt 0:00:05][%csl Gb2][%cal Rf2h2]} 41. Rc4+ {[%emt 0:00:13]} Bd4 {[%emt 0:00:10][%csl Gb2][%cal Rf2h2]} 42. Qd6+ {[%emt 0:00:11]} Kxg5 {[%emt 0:00:09][%cal Rf2f1]} (42... Ke4 $5 43. Bd5+ (43. Qd5+ $2 Kd3 $19) 43... Kf5 44. Qf8+ Kxg5 45. Qxf2 Bxf2 $11) 43. Qe7+ $2 {[%emt 0:00:13][%mdl 8192]} (43. Qg3+ $11 Qxg3 44. hxg3) 43... Kh6 {[%emt 0:00:11] Never resign too early!  Weighted Error Value: White=0.27 (precise) /Black=0.14 (very precise)} 0-1

[Event "Czech Open-Rapid 2022"]
[Site "Pardubice"]
[Date "2022.07.20"]
[Round "3.8"]
[White "Jirovsky, Milos"]
[Black "Polak, Benedikt"]
[Result "1-0"]
[ECO "A39"]
[WhiteElo "2458"]
[BlackElo "2120"]
[Annotator "TA"]
[PlyCount "49"]
[EventDate "2022.07.20"]
[EventType "swiss"]
[EventCountry "CZE"]
[SourceTitle "playchess.com"]
[Source "ChessBase"]
[SourceQuality "1"]
[TimeControl "1200+10"]

{[%evp 21,49,43,52,48,51,47,45,43,63,56,61,61,58,55,75,48,69,46,67,67,66,73,72,63,155,153,143,157,283,252]} 1. Nf3 {[%emt 0:00:01]} c5 {[%emt 0:00:12]} 2. c4 {[%emt 0:00:03]} Nc6 {[%emt 0:00:02]} 3. g3 {[%emt 0:00:16]} g6 {[%emt 0:00:07]} 4. Bg2 {[%emt 0:00:02]} Bg7 {[%emt 0:00:02]} 5. Nc3 {[%emt 0:00:01]} Nf6 {[%emt 0:01:10]} 6. O-O {[%emt 0:00:04]} O-O {[%emt 0:00:02]} 7. d4 {[%emt 0:00:01]} cxd4 {[%emt 0:00:02]} 8. Nxd4 {[%emt 0:00:01]} Nxd4 {[%emt 0:00:01]} 9. Qxd4 {[%emt 0:00:01]} d6 {[%emt 0:00:01]} 10. Qd3 {[%emt 0:00:01]} Be6 {[%emt 0:00:25]} 11. Bd2 {[%emt 0:00:37]} Qc8 {[%emt 0:00:34]} 12. b3 {[%emt 0:00:02] A39: Symmetrical English vs ...g6: 4 Bg2 Bg7 5 Nf3 Nf6 6 0-0 0-0 7 d4.} Bh3 {[%emt 0:00:15]} 13. Rac1 {[%emt 0:00:04]} Bxg2 {[%emt 0:00:05]} 14. Kxg2 {[%emt 0:00:01] White is slightly better.} a6 {[%emt 0:01:51]} 15. f3 {[%emt 0:00:26] [#]} Qd7 $146 {[%emt 0:01:45]} ({Predecessor:} 15... Qc7 16. Rfd1 Rfd8 17. Bg5 Qc5 18. Bxf6 Bxf6 19. Nd5 Kg7 20. a4 a5 21. e4 e6 {1-0 (36) Cebalo,M (2515)-Sislian,H (2180) Genova 1998}) 16. Bg5 {[%emt 0:00:46]} Rab8 {[%emt 0:00:36]} 17. a4 {[%emt 0:00:04]} h6 {[%emt 0:01:01]} 18. Be3 {[%emt 0:00:35]} (18. Bxf6 $5 Bxf6 19. Rfd1 $14) 18... Rfc8 {[%emt 0:00:51]} 19. Rfd1 {[%emt 0:00:31] White is more active.} Qe6 {[%emt 0:00:42]} 20. Qd2 {[%emt 0:00:20]} Kh7 {[%emt 0:00:09]} 21. Ba7 {[%emt 0:00:03]} Ra8 {[%emt 0:00:04]} 22. Bd4 {[%emt 0:00:01]} Nd7 {[%emt 0:00:30]} (22... h5 $14) 23. Bxg7 $16 {[%emt 0:00:18]} Kxg7 {[%emt 0:00:03]} 24. Nd5 {[%emt 0:00:02] aiming for Rc3.} Kh7 {[%emt 0:01:45] [#]} (24... Qe5 $16 {is a better defense.} 25. Rc3 e6) 25. Rc3 $1 {[%emt 0:00:09] Weighted Error Value: White=0.04 (flawless) /Black=0.27 (precise)} 1-0

[Event "Czech Open-Rapid 2022"]
[Site "Pardubice"]
[Date "2022.07.20"]
[Round "3.9"]
[White "Contos, Vaclav sr"]
[Black "Vykouk, Jan"]
[Result "0-1"]
[ECO "A50"]
[WhiteElo "2074"]
[BlackElo "2476"]
[Annotator "TA"]
[PlyCount "68"]
[EventDate "2022.07.20"]
[EventType "swiss"]
[EventCountry "CZE"]
[SourceTitle "playchess.com"]
[Source "ChessBase"]
[SourceQuality "1"]
[TimeControl "1200+10"]

{[%evp 16,68,6,-18,33,-2,30,5,19,10,20,20,17,18,2,16,39,-47,36,0,38,0,0,-46,-39,-48,-53,-35,-29,-61,-20,-37,-19,-13,-35,-194,-102,-148,-163,-172,-21,-225,-211,-362,-354,-1641,-1606,-1550,-1495,-3217,-3013,-29981,-29981,-29988,-29975]} 1. d4 {[%emt 0:00:03]} Nf6 {[%emt 0:00:01]} 2. c4 {[%emt 0:00:01]} g6 {[%emt 0:00:01]} 3. f3 {[%emt 0:00:02]} c5 {[%emt 0:00:21]} 4. d5 {[%emt 0:00:26]} e6 {[%emt 0:00:15]} 5. e4 {[%emt 0:00:02]} d6 {[%emt 0:00:11]} 6. Nc3 {[%emt 0:00:16]} exd5 {[%emt 0:00:03]} 7. cxd5 {[%emt 0:00:01]} Bg7 {[%emt 0:00:02]} 8. Be3 {[%emt 0:00:18]} O-O {[%emt 0:00:02]} 9. Bd3 {[%emt 0:00:38]} b6 {[%emt 0:00:43] E81: King's Indian: Sämisch: 6th move deviations (including 6 Be3 c6).} (9... Nbd7 $11) 10. Qd2 {[%emt 0:00:06]} Ba6 {[%emt 0:00:06]} 11. Bxa6 {[%emt 0:00:27]} Nxa6 {[%emt 0:00:02] The position is equal.} 12. Nge2 {[%emt 0:00:07]} Nc7 {[%emt 0:00:02] [#]} 13. Bg5 $146 {[%emt 0:00:53]} ({Predecessor:} 13. O-O b5 14. a4 a6 15. Rfc1 Qd7 16. axb5 axb5 17. Nd1 Rxa1 18. Rxa1 Ra8 19. Rxa8+ Nxa8 {½-½ (63) Molina,R (2434)-Weinstein,N (2450) Chess.com INT 2020}) 13... b5 {[%emt 0:00:40][%cal Bb6b5,Bb5b4][%mdl 32]} 14. O-O {[%emt 0:00:08]} b4 {[%emt 0:00:02]} 15. Nd1 {[%emt 0:00:09]} Re8 {[%emt 0:00:07]} 16. Bh6 {[%emt 0:00:29]} (16. a3 $14) 16... Bh8 {[%emt 0:00:04]} (16... Bxh6 $15 17. Qxh6 Nfxd5) 17. Ne3 {[%emt 0:00:13]} Nd7 {[%emt 0:00:07]} 18. Nc4 {[%emt 0:00:09]} Nb6 {[%emt 0:00:33]} 19. Rac1 {[%emt 0:00:40]} (19. Ne3 $11) 19... Nxc4 $15 {[%emt 0:00:15]} (19... f5 {is interesting.} 20. Ng3 fxe4 21. fxe4 Nxc4 22. Rxc4 Nb5) 20. Rxc4 {[%emt 0:00:02]} Nb5 {[%emt 0:00:16]} 21. Bg5 {[%emt 0:00:44]} Qd7 {[%emt 0:00:49]} 22. h4 {[%emt 0:00:58][%cal Oh4h5]} a5 {[%emt 0:00:26]} 23. h5 {[%emt 0:00:13]} (23. g4 {feels hotter.} Be5 24. Kf2 f5 25. gxf5 gxf5 26. Rg1) 23... a4 {[%emt 0:00:01]} 24. hxg6 {[%emt 0:00:04]} hxg6 {[%emt 0:00:02]} 25. f4 $2 {[%emt 0:01:40] [#]} (25. Kf2 $15) 25... f5 {[%emt 0:00:17]} (25... Qg4 $1 $19 {Strongly threatening ...Nd4.} 26. e5 Rxe5 27. fxe5 Qxc4) 26. e5 {[%emt 0:01:41]} (26. exf5 $142 Qxf5 27. Ng3) 26... dxe5 $17 {[%emt 0:00:02]} 27. Rxc5 {[%emt 0:00:02] [#]} exf4 $2 {[%emt 0:00:15]} (27... Qa7 $1 $19 {[%cal Ra7c5]} 28. Qxb4 Nd6) 28. Rxf4 $2 {[%emt 0:00:38]} (28. Rc6 $1 $11) 28... Qa7 $19 {[%emt 0:00:59]} 29. Rfc4 {[%emt 0:01:01]} (29. Qxb4 Rac8 30. Rfc4) 29... Nd6 {[%emt 0:00:34]} 30. Qc2 {[%emt 0:00:14]} (30. Kf1 b3 31. axb3 axb3 32. Qd3) 30... Nxc4 {[%emt 0:02:04]} 31. Qxc4 {[%emt 0:00:03]} Re4 {[%emt 0:00:08][%cal Be8e4,Be4e2,Be2e1][%mdl 32]} ({Wrong is} 31... Rxe2 $2 32. d6+ Qf7 33. d7 $19) 32. Qc1 {[%emt 0:01:00]} Rxe2 {[%emt 0:00:30]} 33. Kf1 {[%emt 0:02:14]} Rae8 {[%emt 0:00:08]} 34. d6 {[%emt 0:00:45]} Re1+ {[%emt 0:00:36] Weighted Error Value: White=1.06/Black=0.28 (precise)} 0-1

[Event "Czech Open-Rapid 2022"]
[Site "Pardubice"]
[Date "2022.07.20"]
[Round "3.10"]
[White "Luch, Michal"]
[Black "Dosedel, Jiri"]
[Result "1-0"]
[ECO "E68"]
[WhiteElo "2375"]
[BlackElo "2008"]
[Annotator "TA"]
[PlyCount "123"]
[EventDate "2022.07.20"]
[EventType "swiss"]
[EventCountry "CZE"]
[SourceTitle "playchess.com"]
[Source "ChessBase"]
[SourceQuality "1"]
[TimeControl "1200+10"]

{[%evp 16,123,41,16,50,23,39,33,46,51,64,49,41,52,113,106,118,116,127,102,110,95,133,114,106,121,164,124,112,82,94,81,82,86,72,35,27,27,65,63,86,86,124,122,284,290,264,185,285,281,270,134,133,128,147,135,135,117,157,158,166,152,209,197,258,252,322,316,297,239,456,444,1004,1013,1001,985,970,979,910,909,903,952,809,789,2299,2229,1382,1335,983,831,1237,1210,1555,1627,29979,29980,29970,29956,29981,29982,29988,29989,29989,29989,29989,29990,29991,29992,29992,29993]} 1. d4 {[%emt 0:00:01]} Nf6 {[%emt 0:00:03]} 2. c4 {[%emt 0:00:01]} d6 {[%emt 0:00:02]} 3. Nf3 {[%emt 0:00:05]} g6 {[%emt 0:00:01]} 4. g3 {[%emt 0:00:02]} Bg7 {[%emt 0:00:02]} 5. Bg2 {[%emt 0:00:01]} O-O {[%emt 0:00:02]} 6. O-O {[%emt 0:00:03]} Nbd7 {[%emt 0:00:02]} 7. Nc3 {[%emt 0:00:02]} e5 {[%emt 0:00:16]} 8. e4 {[%emt 0:00:01]} c6 {[%emt 0:00:04]} 9. b3 {[%emt 0:00:01]} Qc7 {[%emt 0:00:29] Recently 9...exd4 got a lot of attention. E68: King's Indian: Fianchetto: 6...Nbd7 7 0-0 e5 8 e4.} 10. h3 {[%emt 0:00:19]} a6 {[%emt 0:00:33]} 11. Be3 {[%emt 0:02:05]} Re8 {[%emt 0:00:26] White is slightly better.} 12. Rc1 {[%emt 0:00:49] [#]} b6 $146 {[%emt 0:00:39]} ({Predecessor:} 12... Qa5 13. dxe5 dxe5 14. Qc2 Bf8 15. Rcd1 b5 16. Nd2 Nc5 17. Ne2 b4 18. Rfe1 Ne6 {0-1 (48) Lengyel,F (2139)-Vachylya,A (2178) Hungary 2017}) 13. Qd2 {[%emt 0:01:35]} Bb7 {[%emt 0:00:02]} 14. d5 {[%emt 0:00:34]} c5 {[%emt 0:00:56]} (14... Nc5 $14) 15. Ne1 $16 {[%emt 0:00:28]} Nf8 {[%emt 0:01:22]} 16. Nd3 {[%emt 0:00:02]} Bc8 {[%emt 0:00:57]} 17. Kh2 {[%emt 0:01:08]} Rb8 {[%emt 0:00:32]} 18. a4 {[%emt 0:00:48]} Bd7 {[%emt 0:00:07]} 19. b4 {[%emt 0:03:06][%cal Oa4a5]} cxb4 {[%emt 0:04:23]} 20. Nxb4 {[%emt 0:00:03]} Qb7 {[%emt 0:00:01]} 21. Rfe1 {[%emt 0:01:08]} Rec8 {[%emt 0:00:01]} 22. Bf1 {[%emt 0:00:02]} (22. Rb1 {looks sharper.} Rxc4 23. Bf1 Rxe4 24. Nxe4 Nxe4 25. Qc1) 22... Be8 {[%emt 0:00:02]} 23. Rb1 {[%emt 0:00:18][%cal Oa4a5] aiming for a5!} a5 {[%emt 0:00:51]} 24. Nc2 {[%emt 0:00:28]} N8d7 {[%emt 0:00:01] Against c5} 25. f3 {[%emt 0:01:53]} Nc5 26. Na3 {[%emt 0:00:13]} Bf8 {[%emt 0:00:28]} 27. Nab5 {[%emt 0:00:18]} Bxb5 {[%emt 0:00:17]} 28. Rxb5 {[%emt 0:00:55]} Ne8 {[%emt 0:01:43]} 29. Reb1 {[%emt 0:02:46]} f5 $2 {[%emt 0:00:02]} (29... Nc7 $16) 30. exf5 $18 {[%emt 0:00:37]} gxf5 {[%emt 0:00:56]} 31. Bd3 {[%emt 0:02:15]} Ng7 {[%emt 0:00:02]} (31... Nxd3 $142 32. Rxb6 (32. Qxd3 Qc7 $16) 32... Qc7 33. Rxb8 (33. Qxd3 Rxb6 34. Bxb6 Qxc4 $14) 33... Rxb8 34. Qxd3 Rxb1 35. Nxb1 Bg7) 32. Bxc5 {[%emt 0:00:10]} Rxc5 {[%emt 0:00:10]} 33. Rxc5 {[%emt 0:00:16]} (33. Rxb6 $18 Qxb6 34. Rxb6 Rxb6 35. g4) 33... dxc5 $16 {[%emt 0:00:36]} 34. Qh6 {[%emt 0:02:08]} Qc7 {[%emt 0:00:12]} 35. Re1 {[%emt 0:00:27]} Re8 36. Qf6 Qe7 {[%emt 0:01:04]} 37. Qxe7 {[%emt 0:00:32] 0x0.001f240697dedp-1022s more active pieces.} Rxe7 {[%emt 0:00:02]} 38. g4 {[%emt 0:00:07]} fxg4 {[%emt 0:00:16]} (38... Rf7 $16 {keeps fighting.} 39. Nb5 fxg4) 39. hxg4 $18 {[%emt 0:00:00]} ({Don't take} 39. fxg4 Rf7 40. Kg3 Bd6) 39... Rf7 {[%emt 0:00:06]} (39... Ne8 {is a better defense.} 40. Ne4 h6) 40. Kg2 {[%emt 0:00:08]} ({Don't blunder} 40. Rxe5 $2 Bd6 41. f4 Rxf4 $19) 40... Bd6 {[%emt 0:00:05]} 41. Rh1 {[%emt 0:00:13]} Ne8 {[%emt 0:00:22]} 42. Ne4 {[%emt 0:00:18]} Bf8 $2 {[%emt 0:00:14]} (42... Be7 43. Rh5 Nd6 44. Rxe5 Nxe4) 43. Ng5 $1 {[%emt 0:00:06][%csl LRf7,LRh7]} Nf6 {[%emt 0:02:32]} (43... Re7 $142 44. Bxh7+ Kh8 45. Bg6+ Kg7) 44. Nxf7 {[%emt 0:00:06]} Kxf7 {[%emt 0:00:02][%mdl 4096] Endgame KRB-KBN} 45. g5 {[%emt 0:00:03]} Ne8 {[%emt 0:00:25]} 46. Rxh7+ {[%emt 0:00:07]} Bg7 {[%emt 0:00:01]} 47. Rh1 {[%emt 0:00:09]} Nd6 {[%emt 0:00:01]} 48. Rb1 {[%emt 0:00:04]} Nc8 {[%emt 0:00:58]} 49. Bf5 {[%emt 0:00:01]} Ne7 {[%emt 0:00:01]} 50. Be6+ {[%emt 0:00:16]} Kg6 {[%emt 0:00:02]} 51. Rxb6 {[%emt 0:00:02] [#] Threatening mate with d6.} Kxg5 {[%emt 0:00:02]} 52. Rb5 {[%emt 0:00:16]} Kf4 {[%emt 0:00:25]} 53. Rxc5 {[%emt 0:00:47]} Ng6 {[%emt 0:00:02]} 54. Rc7 {[%emt 0:00:08]} Bf6 {[%emt 0:00:24]} 55. Rf7 {[%emt 0:00:05] White mates.} Kg5 {[%emt 0:00:08]} 56. c5 {[%emt 0:00:05]} Nf4+ {[%emt 0:00:43]} 57. Kf1 {[%emt 0:00:01]} Nh5 {[%emt 0:00:21]} 58. c6 {[%emt 0:00:05]} Kf4 {[%emt 0:00:02] [#]} 59. Rxf6+ $1 {[%emt 0:00:19]} Nxf6 {[%emt 0:00:01]} 60. c7 {[%emt 0:00:01]} Kxf3 {[%emt 0:00:02]} 61. c8=Q {[%emt 0:00:03]} Ne4 {[%emt 0:00:11]} 62. d6 {[%emt 0:00:23] Weighted Error Value: White=0.16 (very precise) /Black=0.38} 1-0

[Event "Czech Open-Rapid 2022"]
[Site "Pardubice"]
[Date "2022.07.20"]
[Round "3.11"]
[White "Jonsson, Gauti Pall"]
[Black "Lalic, Bogdan"]
[Result "1/2-1/2"]
[ECO "C44"]
[WhiteElo "2071"]
[BlackElo "2412"]
[Annotator "TA"]
[PlyCount "74"]
[EventDate "2022.07.20"]
[EventType "swiss"]
[EventCountry "CZE"]
[SourceTitle "playchess.com"]
[Source "ChessBase"]
[SourceQuality "1"]
[TimeControl "1200+10"]

{[%evp 9,74,15,32,14,0,-12,0,-25,-29,-20,16,10,7,7,17,22,27,11,21,0,0,0,31,29,44,31,39,23,47,11,23,15,35,24,22,3,12,0,8,0,8,0,11,12,34,31,31,24,24,19,24,-26,-18,-18,-28,-21,-32,-28,-4,-4,0,0,0,0,0,0,0]} 1. e4 e5 {[%emt 0:00:06]} 2. Nf3 Nc6 3. d4 {[%emt 0:00:31]} exd4 {[%emt 0:00:12]} 4. Nxd4 {[%emt 0:00:03]} Qf6 {[%emt 0:00:14]} 5. Nf3 {[%emt 0:00:41]} Bb4+ {[%emt 0:00:39]} 6. Nbd2 {[%emt 0:01:09] C45: Scotch Game.} Nge7 {[%emt 0:00:21] [#]} 7. Bc4 $146 {[%emt 0:00:47]} ({Predecessor:} 7. Bd3 d6 8. O-O O-O 9. c3 Bc5 10. e5 Nxe5 11. Nxe5 dxe5 12. Ne4 Qc6 13. Qh5 {1-0 (43) Gazik,V (2542)-Nguyen,T (2577) Tornelo INT 2021}) 7... d6 {[%emt 0:00:39]} 8. h3 {[%emt 0:00:15]} O-O {[%emt 0:01:16]} 9. O-O {[%emt 0:00:37]} Ne5 {[%emt 0:00:23]} 10. Nxe5 {[%emt 0:00:46]} dxe5 {[%emt 0:00:04]} 11. Qf3 {[%emt 0:02:28]} Qxf3 {[%emt 0:00:23]} (11... Rd8 $5 {[%cal Rb4d2]} 12. c3 Bc5 $11) 12. Nxf3 {[%emt 0:00:03]} Bd6 {[%emt 0:00:52]} 13. Bg5 {[%emt 0:00:30]} Ng6 {[%emt 0:00:16]} 14. h4 {[%emt 0:00:49]} h6 {[%emt 0:01:16]} 15. Be3 {[%emt 0:01:10]} Re8 {[%emt 0:00:14]} 16. g3 {[%emt 0:00:53]} Bg4 {[%emt 0:00:37]} 17. Kg2 {[%emt 0:00:31]} Nf8 {[%emt 0:00:17]} 18. c3 {[%emt 0:01:36]} Nd7 {[%emt 0:00:09]} 19. b4 {[%emt 0:00:30]} Nb6 {[%emt 0:02:25]} 20. Bb3 {[%emt 0:00:28]} Kf8 {[%emt 0:03:45]} 21. Rfd1 {[%emt 0:00:36]} Red8 {[%emt 0:01:13]} 22. Rd2 {[%emt 0:00:39]} f6 {[%emt 0:00:17]} 23. Rad1 {[%emt 0:01:10]} Be7 {[%emt 0:00:07]} 24. a4 {[%emt 0:02:10]} Rxd2 {[%emt 0:00:14]} 25. Rxd2 {[%emt 0:00:03]} a5 {[%emt 0:00:22]} 26. b5 {[%emt 0:00:29]} Ke8 {[%emt 0:01:29]} 27. Ne1 {[%emt 0:00:40]} Rd8 {[%emt 0:00:43]} 28. f3 {[%emt 0:00:38]} Rxd2+ {[%emt 0:00:09]} 29. Bxd2 {[%emt 0:00:02]} Bh5 {[%emt 0:01:14]} 30. c4 {[%emt 0:00:35]} (30. Be3 $142) 30... Bf7 $11 {[%emt 0:00:03]} ({Much less strong is} 30... Bb4 31. Bxb4 axb4 32. c5 $16) 31. Bxa5 {[%emt 0:00:17]} Nxc4 {[%emt 0:00:09]} 32. Bxc4 {[%emt 0:00:57]} Bxc4 {[%emt 0:00:17]} 33. Bxc7 {[%emt 0:00:02] KBB-KBN} Kd7 {[%emt 0:00:34]} 34. Bb6 {[%emt 0:00:16] The position is equal.} Bb3 {[%emt 0:00:10]} 35. a5 {[%emt 0:00:17]} Bc4 {[%emt 0:00:05]} 36. a6 {[%emt 0:00:05]} bxa6 {[%emt 0:00:04]} 37. bxa6 {[%emt 0:00:02]} Bxa6 {[%emt 0:00:10] Weighted Error Value: White=0.10 (very precise) /Black=0.07 (flawless)} 1/2-1/2